bitfinex-derivatives/quotes_BTCF0:USTF0_20250517
["timestamp","ask_amount","ask_price","bid_price","bid_amount"]
[1747510390569,0.4094679,103120.0,103110.0,1.15145908]
[1747510390770,0.4436679,103120.0,103110.0,1.50185908]
[1747510391164,0.2636679,103120.0,103110.0,1.50185908]
[1747510391365,0.2636679,103120.0,103110.0,1.53215908]
[1747510392166,0.4436679,103120.0,103110.0,1.53215908]
[1747510394170,0.4436679,103120.0,103110.0,1.40956645]
[1747510394373,0.4436679,103120.0,103110.0,1.53215908]
[1747510394574,0.4436679,103120.0,103110.0,1.1592793]
[1747510394973,0.2498,103120.0,103110.0,1.1592793]
[1747510395275,0.2172,103120.0,103110.0,1.28187193]
[1747510395673,0.184,103120.0,103110.0,1.37885193]
[1747510396174,0.004,103120.0,103110.0,1.37885193]
[1747510396577,0.003,103120.0,103110.0,1.42505528]
[1747510396875,0.003,103120.0,103110.0,1.42605528]
[1747510397073,0.002,103120.0,103110.0,1.42605528]
[1747510398480,0.002,103120.0,103110.0,1.53212313]
[1747510398978,0.002,103120.0,103110.0,1.28693787]
[1747510399181,0.002,103120.0,103110.0,1.53212313]
[1747510399580,0.002,103120.0,103110.0,1.43514313]
[1747510400178,0.00744216,103120.0,103110.0,1.43514313]
[1747510400970,0.00744216,103120.0,103110.0,1.44755921]
[1747510402075,0.00744216,103120.0,103110.0,1.38694901]
[1747510402581,0.00744216,103120.0,103110.0,1.38732876]
[1747510405483,0.00744216,103120.0,103110.0,1.46981613]
[1747510405484,0.04044216,103120.0,103110.0,1.46981613]
[1747510405783,0.04044216,103120.0,103110.0,1.26473613]
[1747510405984,0.04044216,103120.0,103110.0,1.67465613]
[1747510409179,0.04044216,103120.0,103110.0,1.46957613]
[1747510409384,0.04044216,103120.0,103110.0,1.67449613]
[1747510409678,0.04044216,103120.0,103110.0,1.26473613]
[1747510409872,0.07354216,103120.0,103110.0,1.67457613]
[1747510410271,0.07354216,103120.0,103110.0,1.46957613]
[1747510410477,0.07354216,103120.0,103110.0,1.67453613]
[1747510410679,0.07354216,103120.0,103110.0,1.26473613]
[1747510410877,0.07354216,103120.0,103110.0,1.67465613]
[1747510411078,0.25354216,103120.0,103110.0,1.67465613]
[1747510413689,0.21026589,103120.0,103110.0,1.67465613]
[1747510414383,0.21570805,103120.0,103110.0,1.67465613]
[1747510416291,0.21570805,103120.0,103110.0,1.67659571]
[1747510417091,0.18479645,103120.0,103110.0,1.67659571]
[1747510417291,0.21639645,103120.0,103110.0,1.67659571]
[1747510418884,0.21639645,103120.0,103110.0,1.73720591]
[1747510419193,0.21639645,103120.0,103110.0,1.82347485]
[1747510421894,0.21639645,103120.0,103110.0,1.91439016]
[1747510422194,0.21639645,103120.0,103110.0,1.55359016]
[1747510422387,0.21639645,103120.0,103110.0,2.27519016]
[1747510425197,0.21639645,103120.0,103110.0,2.22973251]
[1747510428296,0.21639645,103120.0,103110.0,1.81981251]
[1747510428499,0.21639645,103120.0,103110.0,2.22961251]
[1747510432492,0.21095429,103120.0,103110.0,2.22961251]
[1747510433695,0.21639645,103120.0,103110.0,2.22961251]
[1747510434190,0.21639645,103120.0,103110.0,2.16794214]
[1747510439303,0.27265558,103140.0,103130.0,0.1938496]
[1747510439497,0.33615558,103140.0,103130.0,1.43744223]
[1747510439705,0.33615558,103140.0,103130.0,1.50062198]
[1747510440407,0.45265558,103140.0,103130.0,1.86142198]
[1747510440700,0.48835558,103140.0,103130.0,1.90758885]
[1747510440900,0.45865558,103140.0,103130.0,1.90758885]
[1747510441106,0.27865558,103140.0,103130.0,1.90758885]
[1747510441307,0.31135558,103140.0,103130.0,1.90758885]
[1747510441806,0.30835558,103140.0,103130.0,1.9537922]
[1747510442005,0.30535558,103140.0,103130.0,1.9577922]
[1747510442209,0.48535558,103140.0,103130.0,1.9577922]
[1747510443511,0.2127,103140.0,103130.0,2.06350645]
[1747510444306,0.18,103140.0,103130.0,2.06350645]
[1747510444503,0.21206008,103150.0,103140.0,0.1938308]
[1747510444711,0.15431706,103160.0,103150.0,0.193812]
[1747510444902,0.15355756,103160.0,103150.0,1.18456363]
[1747510445109,0.33355756,103160.0,103150.0,1.18494338]
[1747510445509,0.33355756,103160.0,103150.0,1.18688221]
[1747510446215,0.2748,103160.0,103150.0,1.23308556]
[1747510447219,0.2758,103160.0,103150.0,1.23308556]
[1747510447720,0.2758,103160.0,103150.0,1.58348556]
[1747510447923,0.2768,103160.0,103150.0,1.58348556]
[1747510451719,0.2768,103160.0,103150.0,1.62037607]
[1747510452024,0.2768,103160.0,103150.0,1.17773607]
[1747510452228,0.2768,103160.0,103150.0,1.40154344]
[1747510452423,0.2768,103160.0,103150.0,1.52413607]
[1747510452622,0.2768,103160.0,103150.0,1.55733607]
[1747510453624,0.2768,103160.0,103150.0,1.16073272]
[1747510456732,0.2768,103160.0,103150.0,1.51113272]
[1747510457032,0.2768,103160.0,103150.0,1.50524221]
[1747510459332,0.2768,103160.0,103150.0,1.30044221]
[1747510459528,0.2768,103160.0,103150.0,1.50524221]
[1747510459929,0.28224216,103160.0,103150.0,1.50524221]
[1747510463935,0.28224216,103160.0,103150.0,1.53634221]
[1747510465338,0.28224216,103160.0,103150.0,1.12674221]
[1747510465640,0.28224216,103160.0,103150.0,0.77634221]
[1747510465846,0.95942819,103160.0,103150.0,0.05175207]
[1747510466134,1.42896082,103160.0,103150.0,0.05175207]
[1747510466843,1.30636819,103160.0,103150.0,0.05175207]
[1747510467034,1.30636819,103160.0,103150.0,0.24556427]
[1747510467231,1.05636819,103160.0,103150.0,0.19764978]
[1747510468530,1.05636819,103160.0,103150.0,0.19802953]
[1747510473647,0.95942819,103160.0,103150.0,0.19802953]
[1747510476845,0.95942819,103160.0,103150.0,0.23042953]
[1747510479139,1.08202082,103160.0,103150.0,0.00421733]
[1747510480639,1.23354034,103160.0,103150.0,0.00421733]
[1747510482748,1.33048034,103160.0,103150.0,0.00421733]
[1747510485350,1.69128034,103160.0,103150.0,0.00421733]
[1747510486553,1.69128034,103160.0,103150.0,0.19802953]
[1747510486744,1.69128034,103160.0,103150.0,0.00421733]
[1747510489155,1.69128034,103160.0,103150.0,0.03711733]
[1747510489550,1.59434034,103160.0,103150.0,0.03711733]
[1747510490050,1.59434034,103160.0,103150.0,0.23092953]
[1747510493746,1.59434034,103160.0,103150.0,0.26192963]
[1747510500660,1.59434034,103160.0,103150.0,0.29472963]
[1747510503867,1.60434034,103160.0,103150.0,0.29472963]
[1747510504165,1.80910034,103160.0,103150.0,0.29472963]
[1747510505069,1.08750034,103160.0,103150.0,0.29472963]
[1747510505367,1.80910034,103160.0,103150.0,0.29472963]
[1747510506066,1.08750034,103160.0,103150.0,0.29472963]
[1747510506268,1.80910034,103160.0,103150.0,0.29472963]
[1747510510474,1.08750034,103160.0,103150.0,0.29472963]
[1747510510768,1.80910034,103160.0,103150.0,0.29472963]
[1747510512373,1.65758082,103160.0,103150.0,0.29472963]
[1747510514460,1.53498819,103160.0,103150.0,0.29472963]
[1747510514675,1.86226082,103160.0,103150.0,0.29472963]
[1747510515071,1.45282082,103160.0,103150.0,0.29472963]
[1747510515971,1.33022819,103160.0,103150.0,0.29472963]
[1747510516574,1.45282082,103160.0,103150.0,0.29472963]
[1747510517777,1.65754082,103160.0,103150.0,0.29472963]
[1747510521280,0.93594082,103160.0,103150.0,0.29472963]
[1747510521580,1.65754082,103160.0,103150.0,0.29472963]
[1747510522475,1.65754082,103160.0,103150.0,0.10091733]
[1747510522783,1.86872549,103160.0,103150.0,0.10091733]
[1747510522970,0.1938122,103150.0,103140.0,0.03689051]
[1747510523175,1.27965596,103150.0,103140.0,0.06805126]
[1747510523873,1.23706333,103150.0,103140.0,0.06805126]
[1747510524777,1.23706333,103150.0,103140.0,0.06905126]
[1747510525275,1.23806333,103150.0,103140.0,0.06905126]
[1747510525482,1.23806333,103150.0,103140.0,0.03675126]
[1747510525982,1.23806333,103150.0,103140.0,0.06865126]
[1747510526374,1.23906333,103150.0,103140.0,0.06765126]
[1747510526585,1.24106333,103150.0,103140.0,0.06765126]
[1747510526774,1.24006333,103150.0,103140.0,0.06765126]
[1747510526974,1.24306333,103150.0,103140.0,0.06765126]
[1747510528186,1.24306333,103150.0,103130.0,0.11548734]
[1747510528187,0.193831,103140.0,103130.0,0.0663]
[1747510528483,1.10063626,103140.0,103130.0,0.0981]
[1747510528683,1.10177551,103140.0,103130.0,0.0981]
[1747510529183,1.28177551,103140.0,103130.0,0.0981]
[1747510529572,1.28377551,103140.0,103130.0,0.0981]
[1747510530288,1.29528452,103140.0,103130.0,0.0981]
[1747510530790,1.29728452,103140.0,103130.0,0.0981]
[1747510530992,1.30728452,103140.0,103130.0,0.0981]
[1747510531186,1.30728452,103140.0,103130.0,0.065]
[1747510533191,1.33585872,103140.0,103130.0,0.0982]
[1747510535999,1.34130088,103140.0,103130.0,0.0982]
[1747510536791,1.54590088,103140.0,103130.0,0.0982]
[1747510537398,1.66849351,103140.0,103130.0,0.0982]
[1747510540804,2.02929351,103140.0,103130.0,0.0982]
[1747510542301,1.90670088,103140.0,103130.0,0.0982]
[1747510542705,1.49738088,103140.0,103130.0,0.0982]
[1747510543003,1.87514088,103140.0,103130.0,0.2920498]
[1747510543191,1.30177924,103140.0,103130.0,0.2920498]
[1747510543391,1.41437187,103140.0,103130.0,0.2920498]
[1747510544290,1.25917924,103140.0,103130.0,0.2920498]
[1747510544602,0.34374824,103140.0,103130.0,0.41464243]
[1747510544905,0.53757924,103140.0,103130.0,0.41464243]
[1747510545091,0.35757924,103140.0,103130.0,0.41464243]
[1747510545604,0.35457924,103140.0,103130.0,0.41464243]
[1747510545804,0.35257924,103140.0,103130.0,0.41464243]
[1747510546006,0.35357924,103140.0,103130.0,0.41464243]
[1747510546705,0.20241241,103140.0,103130.0,0.41464243]
[1747510551102,0.38241241,103140.0,103130.0,0.41464243]
[1747510554713,0.18858141,103140.0,103130.0,0.41464243]
[1747510554908,0.38241241,103140.0,103130.0,0.77544243]
[1747510555209,0.00858141,103140.0,103130.0,0.77544243]
[1747510555799,0.00858141,103140.0,103130.0,1.35499506]
[1747510556110,0.00972066,103140.0,103130.0,1.76280243]
[1747510556707,0.00972066,103140.0,103130.0,1.81065592]
[1747510557217,0.00972066,103140.0,103130.0,1.63065592]
[1747510557406,0.00872066,103140.0,103130.0,1.75324855]
[1747510557609,0.00972066,103140.0,103130.0,1.75324855]
[1747510558015,0.00872066,103140.0,103130.0,1.63065592]
[1747510558315,0.00872066,103140.0,103130.0,1.93524855]
[1747510558913,0.00772066,103140.0,103130.0,1.93724855]
[1747510561408,0.2266943,103160.0,103150.0,0.1938122]
[1747510561609,0.22555505,103160.0,103150.0,0.4027307]
[1747510561813,0.22555505,103160.0,103150.0,0.4976307]
[1747510562118,0.40555505,103160.0,103150.0,0.4976307]
[1747510563817,0.40655505,103160.0,103150.0,0.4976307]
[1747510564019,0.21276075,103160.0,103150.0,0.98102333]
[1747510564231,0.18286075,103160.0,103150.0,0.98102333]
[1747510564519,0.18830291,103160.0,103150.0,1.33142333]
[1747510565223,0.00830291,103160.0,103150.0,1.33142333]
[1747510565523,0.00830291,103160.0,103150.0,1.34104001]
[1747510565727,0.00830291,103160.0,103150.0,1.13440001]
[1747510565912,0.03840291,103160.0,103150.0,1.13440001]
[1747510566107,0.03840291,103160.0,103150.0,1.54856001]
[1747510566322,0.23219641,103160.0,103150.0,1.13440001]
[1747510566819,0.03840291,103160.0,103150.0,1.13440001]
[1747510567021,0.03840291,103160.0,103150.0,1.54848001]
[1747510567318,0.21840291,103160.0,103150.0,1.54848001]
[1747510567823,0.21840291,103160.0,103150.0,1.19808001]
[1747510571324,0.21840291,103160.0,103150.0,0.83728001]
[1747510571623,0.21840291,103160.0,103150.0,1.19808001]
[1747510575026,0.18830291,103160.0,103150.0,1.32067264]
[1747510575226,0.00830291,103160.0,103150.0,1.46604644]
[1747510575531,0.0319,103170.0,103160.0,0.1937934]
[1747510575717,0.0319,103170.0,103160.0,0.89097866]
[1747510576024,0.0647,103180.0,103170.0,0.1937747]
[1747510576222,0.098,103180.0,103170.0,0.94544733]
[1747510576431,0.098,103180.0,103170.0,0.97564733]
[1747510576727,0.098,103180.0,103170.0,0.97678658]
[1747510577116,0.278,103180.0,103170.0,0.97678658]
[1747510577417,0.282,103180.0,103170.0,0.99106669]
[1747510577617,0.287,103180.0,103170.0,0.99106669]
[1747510578126,0.4807559,103180.0,103170.0,0.99106669]
[1747510579625,0.48619806,103180.0,103170.0,0.99106669]
[1747510579924,0.48619806,103180.0,103170.0,1.19806669]
[1747510580527,0.29244216,103180.0,103170.0,1.19806669]
[1747510582133,0.26134216,103180.0,103170.0,1.19806669]
[1747510582727,0.26134216,103180.0,103170.0,1.07547406]
[1747510582924,0.26134216,103180.0,103170.0,1.19806669]
[1747510583928,0.19544216,103180.0,103170.0,1.07547406]
[1747510584130,0.01544216,103180.0,103170.0,1.19806669]
[1747510584325,0.01544216,103180.0,103170.0,1.59689747]
[1747510584630,0.00844216,103180.0,103170.0,1.59689747]
[1747510585026,0.00744216,103180.0,103170.0,1.59689747]
[1747510585225,0.18744216,103180.0,103170.0,1.59789747]
[1747510585625,0.22024216,103180.0,103170.0,1.59789747]
[1747510586030,0.21924216,103180.0,103170.0,1.59789747]
[1747510586229,0.21924216,103180.0,103170.0,1.59889747]
[1747510586627,0.21924216,103180.0,103170.0,1.26902484]
[1747510586834,0.21924216,103180.0,103170.0,1.60557747]
[1747510587330,0.21924216,103180.0,103170.0,1.65088302]
[1747510588930,0.21924216,103180.0,103170.0,1.29008302]
[1747510589137,0.21924216,103180.0,103170.0,1.52829039]
[1747510589337,0.47719816,103180.0,103170.0,1.22992302]
[1747510589938,0.47719816,103180.0,103170.0,1.52861039]
[1747510590140,0.47719816,103180.0,103170.0,1.48330484]
[1747510590533,0.59979079,103180.0,103170.0,0.61002484]
[1747510590728,0.96059079,103180.0,103170.0,0.59574473]
[1747510590936,0.96059079,103180.0,103170.0,0.40197003]
[1747510591127,1.08318342,103180.0,103170.0,0.40197003]
[1747510591349,0.96059079,103180.0,103170.0,0.59574473]
[1747510591839,0.96059079,103180.0,103170.0,0.54731395]
[1747510593341,1.08318342,103180.0,103170.0,0.54731395]
[1747510593535,0.96159079,103180.0,103170.0,0.54531395]
[1747510593730,0.96259079,103180.0,103170.0,0.54531395]
[1747510594539,0.96259079,103180.0,103170.0,0.5464532]
[1747510594741,0.96259079,103180.0,103170.0,0.1960532]
[1747510602145,0.64624216,103180.0,103170.0,0.35104583]
[1747510602350,0.28544216,103180.0,103170.0,0.38114583]
[1747510602543,0.47919816,103180.0,103170.0,0.38114583]
[1747510602851,0.25254216,103180.0,103170.0,0.64431709]
[1747510603450,0.22124216,103180.0,103170.0,1.00511709]
[1747510604852,0.22124216,103180.0,103170.0,1.01979517]
[1747510605351,0.22124216,103180.0,103170.0,1.23443517]
[1747510608650,0.41499816,103180.0,103170.0,1.23443517]
[1747510609142,0.22124216,103180.0,103170.0,1.23443517]
[1747510609453,0.22124216,103180.0,103170.0,1.18606391]
[1747510613357,0.41499816,103180.0,103170.0,0.63403128]
[1747510613556,0.53759079,103180.0,103170.0,0.63403128]
[1747510613870,0.44749816,103180.0,103170.0,0.63403128]
[1747510614450,0.44749816,103180.0,103170.0,0.80508659]
[1747510614954,0.25374216,103180.0,103170.0,0.80508659]
[1747510615353,0.44749816,103180.0,103170.0,0.80508659]
[1747510616658,0.44749816,103180.0,103170.0,0.83798659]
[1747510617661,0.41499816,103180.0,103170.0,0.83798659]
[1747510619964,0.41499816,103180.0,103170.0,0.47718659]
[1747510620168,0.22124216,103180.0,103170.0,0.83798659]
[1747510620360,0.18844216,103180.0,103170.0,0.83798659]
[1747510621767,0.18844216,103180.0,103170.0,1.19878659]
[1747510622861,0.18744216,103180.0,103170.0,1.19978659]
[1747510623461,0.2957196,103200.0,103170.0,1.22334967]
[1747510623660,0.3281196,103200.0,103190.0,0.31632983]
[1747510623860,0.3603196,103200.0,103190.0,0.19487645]
[1747510624062,0.5403196,103200.0,103190.0,0.28897645]
[1747510624759,0.5433196,103200.0,103190.0,0.28897645]
[1747510625370,0.69681223,103200.0,103190.0,0.28897645]
[1747510625770,0.69881223,103200.0,103190.0,0.28897645]
[1747510625976,0.69581223,103200.0,103190.0,0.28897645]
[1747510626269,0.69881223,103200.0,103190.0,0.28897645]
[1747510629769,0.5762196,103200.0,103190.0,0.28897645]
[1747510629972,0.69881223,103200.0,103190.0,0.28897645]
[1747510631877,1.05961223,103200.0,103190.0,0.28897645]
[1747510633773,0.5762196,103200.0,103190.0,0.28897645]
[1747510634778,0.5762196,103200.0,103190.0,0.2901157]
[1747510635989,0.9370196,103200.0,103190.0,0.2901157]
[1747510636476,1.05961223,103200.0,103190.0,0.2901157]
[1747510638686,0.69881223,103200.0,103190.0,0.2901157]
[1747510638889,1.05961223,103200.0,103190.0,0.2901157]
[1747510639589,1.06505439,103200.0,103190.0,0.2901157]
[1747510641292,1.06505439,103200.0,103190.0,0.2267157]
[1747510641480,1.06505439,103200.0,103190.0,0.0022785]
[1747510641686,1.54844702,103200.0,103190.0,0.1960162]
[1747510645886,1.86363102,103200.0,103190.0,0.0022785]
[1747510646274,2.40167102,103200.0,103190.0,0.0022785]
[1747510646474,2.09167102,103200.0,103190.0,0.0022785]
[1747510647496,2.40167102,103200.0,103190.0,0.0022785]
[1747510647683,2.52426365,103200.0,103190.0,0.0022785]
[1747510648582,2.08167102,103200.0,103190.0,0.0022785]
[1747510648893,2.10167102,103200.0,103190.0,0.0022785]
[1747510649190,2.10167102,103200.0,103190.0,0.1960162]
[1747510649191,1.66535102,103200.0,103190.0,0.1960162]
[1747510649989,1.66535102,103200.0,103190.0,0.0022785]
[1747510651192,2.10794365,103200.0,103190.0,0.0022785]
[1747510654085,1.98535102,103200.0,103190.0,0.0022785]
[1747510654282,1.86303102,103200.0,103190.0,0.0022785]
[1747510654483,1.54844702,103200.0,103190.0,0.1960162]
[1747510654684,1.98456702,103200.0,103190.0,0.1960162]
[1747510655177,1.98456702,103200.0,103190.0,0.2290162]
[1747510655397,1.76676702,103200.0,103190.0,0.2290162]
[1747510655597,1.98444702,103200.0,103190.0,0.2290162]
[1747510655784,1.98432702,103200.0,103190.0,0.2593162]
[1747510657397,1.54844702,103200.0,103190.0,0.0655785]
[1747510657591,1.98360702,103200.0,103190.0,0.0655785]
[1747510662501,2.13480186,103200.0,103190.0,0.0655785]
[1747510665303,1.91720186,103200.0,103190.0,0.0655785]
[1747510665494,2.13372186,103200.0,103190.0,0.2910161]
[1747510665902,1.69964186,103200.0,103190.0,0.2910161]
[1747510666102,2.13376186,103200.0,103190.0,0.2910161]
[1747510670804,2.13376186,103200.0,103190.0,0.0972785]
[1747510673402,2.13376186,103200.0,103190.0,0.2910162]
[1747510673708,2.13376186,103200.0,103190.0,0.0972785]
[1747510676305,1.41216186,103200.0,103190.0,0.0972785]
[1747510676505,2.13376186,103200.0,103190.0,0.0972785]
[1747510677400,1.98256702,103200.0,103190.0,0.0972785]
[1747510677703,1.98132702,103200.0,103190.0,0.0972785]
[1747510680415,1.98132702,103200.0,103190.0,0.2910161]
[1747510680601,1.98132702,103200.0,103190.0,0.0972785]
[1747510681111,1.98132702,103200.0,103190.0,0.2910162]
[1747510681523,2.19318346,103200.0,103190.0,0.2910162]
[1747510682332,2.19318346,103200.0,103190.0,0.0972785]
[1747510682925,1.7326782,103200.0,103190.0,0.2910162]
[1747510683231,1.4520182,103200.0,103190.0,0.2910162]
[1747510683421,1.4196182,103200.0,103190.0,0.2910162]
[1747510683627,1.54221083,103200.0,103190.0,0.2910162]
[1747510683817,1.57311083,103200.0,103190.0,0.2910162]
[1747510684622,1.57011083,103200.0,103190.0,0.2910162]
[1747510684935,1.58311083,103200.0,103190.0,0.2910162]
[1747510685134,1.73444048,103200.0,103190.0,0.2910162]
[1747510685430,1.73144048,103200.0,103190.0,0.2910162]
[1747510685632,1.72444048,103200.0,103190.0,0.2910162]
[1747510686835,1.60184785,103200.0,103190.0,0.2910162]
[1747510687022,1.72444048,103200.0,103190.0,0.2910162]
[1747510691134,1.36364048,103200.0,103190.0,0.2910162]
[1747510693139,1.24104785,103200.0,103190.0,0.2910162]
[1747510693329,1.36364048,103200.0,103190.0,0.2910162]
[1747510694141,1.39624048,103200.0,103190.0,0.2910162]
[1747510694344,1.51883311,103200.0,103190.0,0.2593162]
[1747510694545,1.42894048,103200.0,103190.0,0.2593162]
[1747510694738,1.64346048,103200.0,103190.0,0.2593162]
[1747510695238,1.76605311,103200.0,103190.0,0.2593162]
[1747510695634,2.13605311,103200.0,103190.0,0.2593162]
[1747510697045,1.77525311,103200.0,103190.0,0.2593162]
[1747510697234,2.49685311,103200.0,103190.0,0.2593162]
[1747510697642,2.37426048,103200.0,103190.0,0.2593162]
[1747510697844,2.49685311,103200.0,103190.0,0.0022785]
[1747510698042,2.71073311,103200.0,103190.0,0.0022785]
[1747510701645,2.55940346,103200.0,103190.0,0.0022785]
[1747510702545,2.43681083,103200.0,103190.0,0.0022785]
[1747510702740,2.55940346,103200.0,103190.0,0.0022785]
[1747510702940,2.55940346,103200.0,103190.0,0.0335785]
[1747510706351,1.83780346,103200.0,103190.0,0.0335785]
[1747510706646,2.55940346,103200.0,103190.0,0.0335785]
[1747510708350,2.34552346,103200.0,103190.0,0.0335785]
[1747510708645,2.55844346,103200.0,103190.0,0.2273161]
[1747510708944,2.43605083,103200.0,103190.0,0.2588161]
[1747510709147,2.00841083,103200.0,103190.0,0.2898161]
[1747510709340,2.43609083,103200.0,103190.0,0.2898161]
[1747510709846,1.63841083,103200.0,103190.0,0.2898161]
[1747510710050,2.00293083,103200.0,103190.0,0.2898161]
[1747510710449,2.15411059,103200.0,103190.0,0.2898161]
[1747510715652,2.34411059,103200.0,103190.0,0.2898161]
[1747510716350,1.98331059,103200.0,103190.0,0.2898161]
[1747510720453,1.64331059,103200.0,103190.0,0.2898161]
[1747510720654,1.65331059,103200.0,103190.0,0.2898161]
[1747510721561,1.65075059,103200.0,103190.0,0.2898161]
[1747510723160,1.28995059,103200.0,103190.0,0.2898161]
[1747510723362,1.65075059,103200.0,103190.0,0.2898161]
[1747510725959,1.77334322,103200.0,103190.0,0.2898161]
[1747510726761,2.01155059,103200.0,103190.0,0.2898161]
[1747510727062,1.86037083,103200.0,103190.0,0.2898161]
[1747510731766,1.13877083,103200.0,103190.0,0.2898161]
[1747510731968,1.86037083,103200.0,103190.0,0.2898161]
[1747510733068,1.86037083,103200.0,103190.0,0.0960785]
[1747510733461,1.98296346,103200.0,103190.0,0.0022785]
[1747510735069,1.98296346,103200.0,103190.0,0.0324785]
[1747510735265,1.98296346,103200.0,103190.0,0.0022785]
[1747510736072,1.98296346,103200.0,103190.0,0.0324785]
[1747510736272,1.98296346,103200.0,103190.0,0.0022785]
[1747510736662,0.193756,103180.0,103170.0,0.26100162]
[1747510736862,1.03794863,103180.0,103170.0,0.32330162]
[1747510737062,1.13394863,103180.0,103170.0,0.32330162]
[1747510737259,1.31394863,103180.0,103170.0,0.32330162]
[1747510737760,1.31394863,103180.0,103170.0,0.32430162]
[1747510739170,1.46530089,103180.0,103170.0,0.32430162]
[1747510740374,1.47030089,103180.0,103170.0,0.32330162]
[1747510740967,1.10950089,103180.0,103170.0,0.32330162]
[1747510742471,0.74870089,103180.0,103170.0,0.32330162]
[1747510742673,1.10950089,103180.0,103170.0,0.32330162]
[1747510745275,0.98690826,103180.0,103170.0,0.2863627]
[1747510745473,1.10950089,103180.0,103170.0,0.2863627]
[1747510746070,1.11494305,103180.0,103170.0,0.2863627]
[1747510747378,0.99235042,103180.0,103170.0,0.2863627]
[1747510747576,1.11494305,103180.0,103170.0,0.2863627]
[1747510749376,1.12450262,103180.0,103170.0,0.2863627]
[1747510750172,0.76370262,103180.0,103170.0,0.2863627]
[1747510750374,1.12450262,103180.0,103170.0,0.2863627]
[1747510750974,1.23753568,103180.0,103170.0,0.0926]
[1747510751170,1.63801568,103180.0,103170.0,0.2863747]
[1747510751778,1.39283042,103180.0,103170.0,0.2863747]
[1747510752172,1.32542305,103180.0,103170.0,0.2863747]
[1747510752775,1.33533136,103180.0,103170.0,0.2863747]
[1747510753478,1.32542305,103180.0,103170.0,0.2863747]
[1747510755972,0.96462305,103180.0,103170.0,0.2863747]
[1747510756173,1.32542305,103180.0,103170.0,0.2863747]
[1747510757382,1.33518675,103180.0,103170.0,0.2863747]
[1747510758080,1.32542305,103180.0,103170.0,0.2863747]
[1747510762583,1.11494305,103180.0,103170.0,0.2863747]
[1747510763486,1.23753568,103180.0,103170.0,0.2863747]
[1747510765478,0.87673568,103180.0,103170.0,0.2863747]
[1747510765677,1.23753568,103180.0,103170.0,0.2863747]
[1747510766191,0.99235042,103180.0,103170.0,0.2863747]
[1747510766380,1.11494305,103180.0,103170.0,0.2863747]
[1747510767386,1.23753568,103180.0,103170.0,0.2863747]
[1747510767985,0.87673568,103180.0,103170.0,0.2863747]
[1747510768387,1.23753568,103180.0,103170.0,0.2863747]
[1747510768989,0.87673568,103180.0,103170.0,0.2863747]
[1747510769189,1.23753568,103180.0,103170.0,0.2863747]
[1747510770179,0.87673568,103180.0,103170.0,0.2863747]
[1747510770690,1.23753568,103180.0,103170.0,0.2863747]
[1747510771089,0.87673568,103180.0,103170.0,0.2863747]
[1747510771589,1.23753568,103180.0,103170.0,0.2863747]
[1747510774793,0.87673568,103180.0,103170.0,0.2863747]
[1747510774991,1.23753568,103180.0,103170.0,0.2863747]
[1747510776195,0.87673568,103180.0,103170.0,0.2863747]
[1747510776390,1.11494305,103180.0,103170.0,0.2863747]
[1747510777196,0.75414305,103180.0,103170.0,0.2863747]
[1747510777388,1.11494305,103180.0,103170.0,0.2863747]
[1747510777589,0.75414305,103180.0,103170.0,0.2863747]
[1747510777790,1.11494305,103180.0,103170.0,0.2863747]
[1747510778089,1.20499042,103180.0,103170.0,0.2863747]
[1747510778291,1.32758305,103180.0,103170.0,0.2863747]
[1747510779795,0.96678305,103180.0,103170.0,0.2863747]
[1747510779994,1.32758305,103180.0,103170.0,0.2863747]
[1747510781995,1.11494305,103180.0,103170.0,0.2863747]
[1747510783397,0.75414305,103180.0,103170.0,0.2863747]
[1747510783598,1.11494305,103180.0,103170.0,0.2863747]
[1747510783899,0.75114305,103180.0,103170.0,0.2863747]
[1747510784195,1.11494305,103180.0,103170.0,0.2863747]
[1747510786201,0.75414305,103180.0,103170.0,0.2863747]
[1747510786500,1.11494305,103180.0,103170.0,0.2863747]
[1747510789603,0.96359079,103180.0,103170.0,0.2863747]
[1747510791903,1.17595079,103180.0,103170.0,0.2863747]
[1747510798022,0.81515079,103180.0,103170.0,0.2863747]
[1747510798315,1.17595079,103180.0,103170.0,0.2863747]
[1747510799119,0.81515079,103180.0,103170.0,0.2863747]
[1747510799316,1.17595079,103180.0,103170.0,0.2863747]
[1747510801924,1.29854342,103180.0,103170.0,0.2863747]
[1747510802325,1.45000492,103180.0,103170.0,0.2863747]
[1747510804527,1.45000492,103180.0,103170.0,0.2239747]
[1747510804724,0.1937747,103170.0,103160.0,0.34266112]
[1747510804925,0.77076733,103170.0,103160.0,0.34266112]
[1747510805127,0.95076733,103170.0,103160.0,0.34266112]
[1747510805327,0.95076733,103170.0,103160.0,0.29421692]
[1747510805629,1.28471996,103170.0,103160.0,0.23073252]
[1747510805830,1.28571996,103170.0,103160.0,0.23073252]
[1747510806034,1.28671996,103170.0,103160.0,0.03693892]
[1747510806224,1.29671996,103170.0,103160.0,0.03693892]
[1747510806526,1.17412733,103170.0,103160.0,0.03693892]
[1747510806730,1.29671996,103170.0,103160.0,0.03693892]
[1747510808729,1.0515347,103170.0,103160.0,0.03693892]
[1747510809029,1.0515347,103170.0,103160.0,0.23073242]
[1747510809230,0.8301747,103170.0,103160.0,0.29443242]
[1747510809423,0.95276733,103170.0,103160.0,0.32643242]
[1747510809622,1.37676733,103170.0,103160.0,0.32643242]
[1747510810116,1.16440733,103170.0,103160.0,0.32643242]
[1747510810321,1.37672733,103170.0,103160.0,0.32643242]
[1747510810522,1.37672733,103170.0,103160.0,0.13263892]
[1747510810722,1.38672733,103170.0,103160.0,0.13263892]
[1747510810922,1.38684733,103170.0,103160.0,0.13263892]
[1747510812031,1.50943996,103170.0,103160.0,0.03693892]
[1747510812331,1.38684733,103170.0,103160.0,0.03693892]
[1747510813037,1.38684733,103170.0,103160.0,0.23073242]
[1747510813233,1.38684733,103170.0,103160.0,0.0332]
[1747510813737,1.38684733,103170.0,103160.0,0.2269935]
[1747510813936,1.38696733,103170.0,103160.0,0.2902935]
[1747510814127,0.96276733,103170.0,103160.0,0.2902935]
[1747510814332,1.38656733,103170.0,103160.0,0.2902935]
[1747510814538,0.96276733,103170.0,103160.0,0.2902935]
[1747510814921,1.17464733,103170.0,103160.0,0.2902935]
[1747510815327,1.38650377,103170.0,103160.0,0.2902935]
[1747510818938,1.38650377,103170.0,103160.0,0.0965]
[1747510820338,1.95898377,103170.0,103160.0,0.2902935]
[1747510820730,1.83639114,103170.0,103160.0,0.2902935]
[1747510820930,1.95898377,103170.0,103160.0,0.2902935]
[1747510821131,1.96442593,103170.0,103160.0,0.2902935]
[1747510821742,2.11553764,103170.0,103160.0,0.2902935]
[1747510825639,1.68197764,103170.0,103160.0,0.2902935]
[1747510825840,2.10549764,103170.0,103160.0,0.2902935]
[1747510826041,1.83169764,103170.0,103160.0,0.2902935]
[1747510826336,1.61977764,103170.0,103160.0,0.2902935]
[1747510826635,0.89817764,103170.0,103160.0,0.2902935]
[1747510826835,1.25897764,103170.0,103160.0,0.2902935]
[1747510827641,1.10498501,103170.0,103160.0,0.2902935]